bitfinex-derivatives/quotes_BTCF0:USTF0_20250614
["timestamp","ask_amount","ask_price","bid_price","bid_amount"]
[1749887919680,0.89644759,105150.0,105140.0,2.31276816]
[1749887919879,0.74985625,105150.0,105140.0,2.31276816]
[1749887920075,0.74985625,105150.0,105140.0,2.3127675]
[1749887920282,0.74985625,105150.0,105140.0,2.2979052]
[1749887920577,0.74985625,105150.0,105140.0,2.31274672]
[1749887921080,0.74985625,105150.0,105140.0,2.3232666]
[1749887921285,0.55973835,105150.0,105140.0,2.32327082]
[1749887921478,0.71955625,105150.0,105140.0,2.32327063]
[1749887921677,0.71955625,105150.0,105140.0,2.35387063]
[1749887921878,0.71955625,105150.0,105140.0,2.35387057]
[1749887922088,0.71955625,105150.0,105140.0,2.35387055]
[1749887922279,0.71955625,105150.0,105140.0,2.3390292]
[1749887922473,0.71955625,105150.0,105140.0,2.35387057]
[1749887922674,0.71955625,105150.0,105140.0,2.35387045]
[1749887922874,0.71955625,105150.0,105140.0,2.33902914]
[1749887923180,0.71955625,105150.0,105140.0,2.3285052]
[1749887923379,0.71955625,105150.0,105140.0,2.33902906]
[1749887923883,0.71955625,105150.0,105140.0,2.3538913]
[1749887924083,0.71955625,105150.0,105140.0,2.33902906]
[1749887924382,0.71955625,105150.0,105140.0,2.3538913]
[1749887924583,0.71955625,105150.0,105140.0,2.33903736]
[1749887924976,0.71955625,105150.0,105140.0,2.3285052]
[1749887925171,0.71955625,105150.0,105140.0,2.33903736]
[1749887925377,0.71955625,105150.0,105140.0,2.35389947]
[1749887925577,0.35875625,105150.0,105140.0,2.33903736]
[1749887925883,0.35875625,105150.0,105140.0,2.33903693]
[1749887926085,0.35875625,105150.0,105140.0,2.35389878]
[1749887926482,0.35875625,105150.0,105140.0,2.33903687]
[1749887926781,0.35875625,105150.0,105140.0,2.35389873]
[1749887927084,0.35875625,105150.0,105140.0,2.33903687]
[1749887927486,0.35875625,105150.0,105140.0,2.3390368]
[1749887927681,0.35875625,105150.0,105140.0,2.35389865]
[1749887928385,0.35875625,105150.0,105140.0,2.35389858]
[1749887928686,0.35875625,105150.0,105140.0,2.35389857]
[1749887928985,0.35875625,105150.0,105140.0,2.33903672]
[1749887929187,0.35875625,105150.0,105140.0,2.35389857]
[1749887929478,0.35875625,105150.0,105140.0,2.35389851]
[1749887929680,0.35875625,105150.0,105140.0,2.33903666]
[1749887930080,0.35875625,105150.0,105140.0,2.35389851]
[1749887930279,0.35875625,105150.0,105140.0,2.35389819]
[1749887930883,0.35875625,105150.0,105140.0,1.40765814]
[1749887931189,0.35875625,105150.0,105140.0,2.35377814]
[1749887931783,0.35875625,105150.0,105140.0,2.34324705]
[1749887932088,0.35875625,105150.0,105140.0,2.33891623]
[1749887932288,0.35875625,105150.0,105140.0,2.33891624]
[1749887932482,0.35875625,105150.0,105140.0,2.3283852]
[1749887932881,0.35875625,105150.0,105140.0,2.35377801]
[1749887933087,0.35875625,105150.0,105140.0,2.3283852]
[1749887933283,0.35875625,105150.0,105140.0,2.35377801]
[1749887933691,0.35875625,105150.0,105140.0,2.33891613]
[1749887934196,0.35875625,105150.0,105140.0,2.34324704]
[1749887934396,0.35875625,105150.0,105140.0,2.35377796]
[1749887934593,0.35875625,105150.0,105140.0,2.34324704]
[1749887934788,0.35875625,105150.0,105140.0,2.33891576]
[1749887934988,0.35875625,105150.0,105140.0,2.35377908]
[1749887935189,0.35875625,105150.0,105140.0,2.34324704]
[1749887935387,0.35875625,105150.0,105140.0,2.35377908]
[1749887935591,0.35875625,105150.0,105140.0,2.35377907]
[1749887936098,0.35875625,105150.0,105140.0,2.35377906]
[1749887936597,0.35875625,105150.0,105140.0,2.33891722]
[1749887937094,0.35875625,105150.0,105140.0,2.35377906]
[1749887937598,0.35875625,105150.0,105140.0,2.3283852]
[1749887937797,0.35875625,105150.0,105140.0,2.33891726]
[1749887937998,0.35875625,105150.0,105140.0,2.3537791]
[1749887938393,0.35875625,105150.0,105140.0,2.34324704]
[1749887938593,0.35875625,105150.0,105140.0,2.35377918]
[1749887938793,0.86614759,105150.0,105140.0,0.55517955]
[1749887938993,0.89814759,105150.0,105140.0,2.2977452]
[1749887939199,0.89814759,105150.0,105140.0,2.32314024]
[1749887939399,0.89400924,105150.0,105140.0,2.32314024]
[1749887939602,0.89400924,105150.0,105140.0,2.31260756]
[1749887939788,0.89400924,105150.0,105140.0,2.30827797]
[1749887939993,0.89400924,105150.0,105140.0,2.32314039]
[1749887940500,0.89814759,105150.0,105140.0,2.31260762]
[1749887940702,0.89814759,105150.0,105140.0,2.2977452]
[1749887940902,0.89814759,105150.0,105140.0,2.32314076]
[1749887941103,0.89814759,105150.0,105140.0,2.2977452]
[1749887941403,0.89814759,105150.0,105140.0,2.3231408]
[1749887941605,0.89814759,105150.0,105140.0,2.31260768]
[1749887941805,0.89814759,105150.0,105140.0,2.32314128]
[1749887942603,0.89814759,105150.0,105140.0,2.31260768]
[1749887942898,0.89814759,105150.0,105140.0,2.32314171]
[1749887943303,0.89814759,105150.0,105140.0,2.31260768]
[1749887943607,0.89814759,105150.0,105140.0,2.3231421]
[1749887943900,0.89814759,105150.0,105140.0,2.2977452]
[1749887944100,0.89814759,105150.0,105140.0,2.32314211]
[1749887944308,0.89814759,105150.0,105140.0,2.30827963]
[1749887944508,0.89814759,105150.0,105140.0,2.32314344]
[1749887944702,0.89814759,105150.0,105140.0,2.30822103]
[1749887944903,0.89814759,105150.0,105140.0,2.29768527]
[1749887945099,0.89814759,105150.0,105140.0,2.32308399]
[1749887945298,0.89814759,105150.0,105140.0,2.29768527]
[1749887945501,0.89814759,105150.0,105140.0,2.32308379]
[1749887945903,0.89814759,105150.0,105140.0,2.31254775]
[1749887946098,0.89814759,105150.0,105140.0,2.32308379]
[1749887946508,0.89814759,105150.0,105140.0,2.31254775]
[1749887946708,0.89814759,105150.0,105140.0,2.32308353]
[1749887947009,0.89814759,105150.0,105140.0,2.31254775]
[1749887947403,0.89814759,105150.0,105140.0,2.16591641]
[1749887947605,0.89814759,105150.0,105140.0,2.29764527]
[1749887947907,0.89814759,105150.0,105140.0,2.27866118]
[1749887948100,0.89814759,105150.0,105140.0,2.27866169]
[1749887948301,0.89814759,105150.0,105140.0,2.25326282]
[1749887948496,0.89814759,105150.0,105140.0,2.27866105]
[1749887948707,0.89814759,105150.0,105140.0,2.26379829]
[1749887948909,0.89814759,105150.0,105140.0,2.27866105]
[1749887949314,0.89814759,105150.0,105140.0,2.26812558]
[1749887949611,0.89814759,105150.0,105140.0,2.26379664]
[1749887949812,0.89814759,105150.0,105140.0,2.2786594]
[1749887950215,0.89814759,105150.0,105140.0,1.5098994]
[1749887950408,0.89814759,105150.0,105140.0,2.2786594]
[1749887950409,0.75155625,105150.0,105140.0,2.2786594]
[1749887950713,0.89814759,105150.0,105140.0,2.2786594]
[1749887950910,0.89814759,105150.0,105140.0,2.2786589]
[1749887952304,0.89814759,105150.0,105140.0,2.25326282]
[1749887952503,0.89814759,105150.0,105140.0,2.27865795]
[1749887952710,0.89814759,105150.0,105140.0,2.26379519]
[1749887952908,0.89814759,105150.0,105140.0,2.25326282]
[1749887953108,0.89814759,105150.0,105140.0,2.26812558]
[1749887953316,0.89814759,105150.0,105140.0,2.27865795]
[1749887953516,0.89814759,105150.0,105140.0,2.26812558]
[1749887953705,0.89814759,105150.0,105140.0,2.26379519]
[1749887954112,0.89814759,105150.0,105140.0,2.27865795]
[1749887954308,0.89814759,105150.0,105140.0,2.13206535]
[1749887954510,0.89814759,105150.0,105140.0,2.26379398]
[1749887954711,0.89814759,105150.0,105140.0,2.27865686]
[1749887955417,0.89814759,105150.0,105140.0,2.26379401]
[1749887955612,0.89814759,105150.0,105140.0,2.27865686]
[1749887956317,0.89814759,105150.0,105140.0,2.25326282]
[1749887956517,0.89814759,105150.0,105140.0,2.27865686]
[1749887956920,0.89814759,105150.0,105140.0,2.27865695]
[1749887957220,0.89814759,105150.0,105140.0,2.2637941]
[1749887957424,0.89814759,105150.0,105140.0,2.25326282]
[1749887957619,0.89814759,105150.0,105140.0,2.2637941]
[1749887957920,0.89814759,105150.0,105140.0,2.27865695]
[1749887958512,0.89814759,105150.0,105140.0,2.25326282]
[1749887958915,0.89814759,105150.0,105140.0,2.27865986]
[1749887959219,0.89814759,105150.0,105140.0,2.26812567]
[1749887959413,0.89814759,105150.0,105140.0,2.27865986]
[1749887959923,0.89814759,105150.0,105140.0,1.33261986]
[1749887960119,0.89814759,105150.0,105140.0,2.26804567]
[1749887960317,0.89814759,105150.0,105140.0,2.27858042]
[1749887960916,0.89814759,105150.0,105140.0,2.26804571]
[1749887961222,0.89814759,105150.0,105140.0,2.27858042]
[1749887962327,0.89814759,105150.0,105140.0,2.26804571]
[1749887962726,0.89814759,105150.0,105140.0,2.26371753]
[1749887962916,0.89814759,105150.0,105140.0,2.27858042]
[1749887963122,0.89814759,105150.0,105140.0,2.25318282]
[1749887963319,0.89814759,105150.0,105140.0,2.31098034]
[1749887963819,0.89814759,105150.0,105140.0,2.30044571]
[1749887964021,0.89814759,105150.0,105140.0,2.31098031]
[1749887964623,0.89814759,105150.0,105140.0,2.28558282]
[1749887964931,0.89814759,105150.0,105140.0,2.31098031]
[1749887965428,0.89814759,105150.0,105140.0,2.30044571]
[1749887965630,0.89814759,105150.0,105140.0,2.31098031]
[1749887965819,0.89814759,105150.0,105140.0,2.30044571]
[1749887966322,0.89814759,105150.0,105140.0,2.31093184]
[1749887966529,0.89814759,105150.0,105140.0,2.29606888]
[1749887966729,0.89814759,105150.0,105140.0,2.31093189]
[1749887967122,0.89814759,105150.0,105140.0,2.28553402]
[1749887967426,0.89814759,105150.0,105140.0,2.31093194]
[1749887967623,0.86614759,105150.0,105140.0,2.31093194]
[1749887967818,0.86614759,105150.0,105140.0,2.30039703]
[1749887968023,0.86614759,105150.0,105140.0,2.29606893]
[1749887968227,0.86614759,105150.0,105140.0,2.31093194]
[1749887968830,0.86614759,105150.0,105140.0,2.29606893]
[1749887969018,0.86614759,105150.0,105140.0,2.31526004]
[1749887969223,0.86614759,105150.0,105140.0,2.30039703]
[1749887969423,0.86614759,105150.0,105140.0,2.31526018]
[1749887969626,0.86614759,105150.0,105140.0,2.32579874]
[1749887969926,0.86614759,105150.0,105140.0,2.3257987]
[1749887970132,0.86614759,105150.0,105140.0,2.30039703]
[1749887970325,0.86614759,105150.0,105140.0,2.32579668]
[1749887970525,0.86614759,105150.0,105140.0,2.30039703]
[1749887970732,0.86614759,105150.0,105140.0,2.31093351]
[1749887970936,0.86200924,105150.0,105140.0,2.32579668]
[1749887971231,0.86200924,105150.0,105140.0,2.3152602]
[1749887971432,0.86200924,105150.0,105140.0,2.32579668]
[1749887971730,0.86200924,105150.0,105140.0,2.3152602]
[1749887972030,0.86614759,105150.0,105140.0,2.32579668]
[1749887972634,0.86614759,105150.0,105140.0,2.32579669]
[1749887973135,0.86614759,105150.0,105140.0,2.32579668]
[1749887973339,0.86614759,105150.0,105140.0,2.3152602]
[1749887973728,0.86614759,105150.0,105140.0,2.31093891]
[1749887973928,0.86614759,105150.0,105140.0,2.32580208]
[1749887974127,0.86614759,105150.0,105140.0,2.266489]
[1749887974337,0.86614759,105150.0,105140.0,2.25594716]
[1749887974631,0.86614759,105150.0,105140.0,2.26648472]
[1749887975031,0.86614759,105150.0,105140.0,2.25162143]
[1749887975228,0.86614759,105150.0,105140.0,2.25594718]
[1749887975430,0.86614759,105150.0,105140.0,2.26648472]
[1749887975835,0.86614759,105150.0,105140.0,2.2664844]
[1749887976235,0.86614759,105150.0,105140.0,2.25162111]
[1749887976428,0.86614759,105150.0,105140.0,2.25594718]
[1749887976731,0.86614759,105150.0,105140.0,2.2664844]
[1749887976937,0.86614759,105150.0,105140.0,2.25594718]
[1749887977142,0.86614759,105150.0,105140.0,2.2664844]
[1749887977634,0.86614759,105150.0,105140.0,2.25594718]
[1749887977839,0.86614759,105150.0,105140.0,2.24108389]
[1749887978039,0.86614759,105150.0,105140.0,2.25162111]
[1749887978230,0.86614759,105150.0,105140.0,2.2664844]
[1749887978730,0.86614759,105150.0,105140.0,2.25594718]
[1749887978926,0.86614759,105150.0,105140.0,2.26648441]
[1749887979128,0.86614759,105150.0,105140.0,2.26648442]
[1749887979833,0.86614759,105150.0,105140.0,2.25594719]
[1749887980033,0.86614759,105150.0,105140.0,2.25162112]
[1749887980238,0.86614759,105150.0,105140.0,2.25162025]
[1749887980432,0.86614759,105150.0,105140.0,2.25594719]
[1749887980632,0.86614759,105150.0,105140.0,2.26648386]
[1749887981144,0.86614759,105150.0,105140.0,1.32060386]
[1749887981338,0.86614759,105150.0,105140.0,2.25590719]
[1749887981639,0.86614759,105150.0,105140.0,2.26644547]
[1749887982335,0.86614759,105150.0,105140.0,2.25590719]
[1749887982536,0.86614759,105150.0,105140.0,2.2664454]
[1749887982734,0.86614759,105150.0,105140.0,2.24104389]
[1749887982935,0.86614759,105150.0,105140.0,2.26644539]
[1749887983233,0.86200924,105150.0,105140.0,2.25590715]
[1749887983631,0.86200924,105150.0,105140.0,2.26644539]
[1749887984029,0.86200924,105150.0,105140.0,2.25158213]
[1749887984233,0.86200924,105150.0,105140.0,2.26644539]
[1749887984435,0.86200924,105150.0,105140.0,2.25158213]
[1749887984640,0.86200924,105150.0,105140.0,2.26644539]
[1749887984841,0.86200924,105150.0,105140.0,2.24104389]
[1749887985041,0.86200924,105150.0,105140.0,2.25590715]
[1749887985230,0.86200924,105150.0,105140.0,2.2664446]
[1749887985436,0.86200924,105150.0,105140.0,2.24104389]
[1749887985642,0.86200924,105150.0,105140.0,2.09445255]
[1749887985836,0.86200924,105150.0,105140.0,2.25590715]
[1749887986037,0.86614759,105150.0,105140.0,2.2664446]
[1749887986232,0.86614759,105150.0,105140.0,2.25590715]
[1749887986543,0.86614759,105150.0,105140.0,2.2664446]
[1749887986940,0.86614759,105150.0,105140.0,2.25590715]
[1749887987242,0.86614759,105150.0,105140.0,2.24104389]
[1749887987443,0.86614759,105150.0,105140.0,2.25158593]
[1749887987637,0.86614759,105150.0,105140.0,2.24104389]
[1749887987842,0.86614759,105150.0,105140.0,2.2664492]
[1749887988243,0.86614759,105150.0,105140.0,2.2662892]
[1749887988436,0.86614759,105150.0,105140.0,2.26628933]
[1749887988638,0.86614759,105150.0,105140.0,2.24088389]
[1749887988839,0.86614759,105150.0,105140.0,2.26628943]
[1749887989341,0.86614759,105150.0,105140.0,2.2514261]
[1749887989541,0.86614759,105150.0,105140.0,2.26628942]
[1749887989742,0.86614759,105150.0,105140.0,1.17401808]
[1749887989948,0.86614759,105150.0,105140.0,2.10043186]
[1749887990241,0.89714759,105150.0,105140.0,2.08729846]
[1749887990447,0.89714759,105150.0,105140.0,2.10044396]
[1749887990647,0.89714759,105150.0,105140.0,2.10044397]
[1749887990849,0.89714759,105150.0,105140.0,2.08990189]
[1749887991145,0.89714759,105150.0,105140.0,2.08729868]
[1749887991339,0.89714759,105150.0,105140.0,2.0855807]
[1749887991544,0.89714759,105150.0,105140.0,2.07503814]
[1749887991743,0.89714759,105150.0,105140.0,2.08729868]
[1749887991948,0.89714759,105150.0,105140.0,2.08558024]
[1749887992245,0.89714759,105150.0,105140.0,2.08558357]
[1749887992442,0.89714759,105150.0,105140.0,2.07243501]
[1749887992646,0.89714759,105150.0,105140.0,2.08729879]
[1749887992847,0.89714759,105150.0,105140.0,2.08729881]
[1749887993043,0.89714759,105150.0,105140.0,2.08558459]
[1749887993346,0.89714759,105150.0,105140.0,2.08729867]
[1749887993541,0.89714759,105150.0,105140.0,2.10044804]
[1749887993851,0.89714759,105150.0,105140.0,2.08558428]
[1749887994035,0.89714759,105150.0,105140.0,1.15475766]
[1749887994238,0.89714759,105150.0,105140.0,2.08989971]
[1749887994439,0.89714759,105150.0,105140.0,2.10043762]
[1749887994638,0.89714759,105150.0,105140.0,2.10043794]
[1749887994838,0.89714759,105150.0,105140.0,2.08729417]
[1749887995040,0.89714759,105150.0,105140.0,2.07675613]
[1749887995237,0.89714759,105150.0,105140.0,2.08558075]
[1749887995438,0.89714759,105150.0,105140.0,2.07503608]
[1749887995644,0.89714759,105150.0,105140.0,2.0873008]
[1749887995839,0.89714759,105150.0,105140.0,2.08730081]
[1749887996041,0.89714759,105150.0,105140.0,2.10046755]
[1749887996238,0.89714759,105150.0,105140.0,2.1004675]
[1749887996543,0.89714759,105150.0,105140.0,2.10046706]
[1749887996738,0.89714759,105150.0,105140.0,1.91033125]
[1749887996938,0.89714759,105150.0,105140.0,2.06189245]
[1749887997142,0.89714759,105150.0,105140.0,2.10046766]
[1749887997347,0.89714759,105150.0,105140.0,2.08560383]
[1749887997545,0.89714759,105150.0,105140.0,1.89546797]
[1749887997748,0.89714759,105150.0,105140.0,1.89978707]
[1749887998146,0.89714759,105150.0,105140.0,1.91033174]
[1749887998347,0.89714759,105150.0,105140.0,1.88662033]
[1749887998551,0.89714759,105150.0,105140.0,1.91033171]
[1749887998852,0.89714759,105150.0,105140.0,1.897165]
[1749887999052,0.89714759,105150.0,105140.0,1.9103319]
[1749887999252,0.89714759,105150.0,105140.0,1.91033174]
[1749887999453,0.89714759,105150.0,105140.0,1.8849233]
[1749887999652,0.89714759,105150.0,105140.0,1.91033175]
[1749887999853,0.89714759,105150.0,105140.0,1.89546797]
[1749888000054,0.89714759,105150.0,105140.0,1.8061368]
[1749888000258,0.75055625,105150.0,105140.0,1.79297005]
[1749888000553,0.75055625,105150.0,105140.0,1.78242301]
[1749888000754,0.75055625,105150.0,105140.0,1.01386301]
[1749888000954,0.75055625,105150.0,105140.0,1.78238301]
[1749888001161,0.75055625,105150.0,105140.0,1.14169128]
[1749888001452,0.75055625,105150.0,105140.0,1.910277]
[1749888001654,0.75055625,105150.0,105140.0,1.88485607]
[1749888001853,0.75055625,105150.0,105140.0,1.87154927]
[1749888002051,0.75055625,105150.0,105140.0,1.91027801]
[1749888002243,0.75055625,105150.0,105140.0,1.11633629]
[1749888002445,0.75055625,105150.0,105140.0,1.91027891]
[1749888002648,0.75055625,105150.0,105140.0,1.87154927]
[1749888002849,0.75055625,105150.0,105140.0,1.91030778]
[1749888003054,0.75055625,105150.0,105140.0,1.87154927]
[1749888003253,0.75055625,105150.0,105140.0,1.82708296]
[1749888003455,0.75055625,105150.0,105140.0,1.05856296]
[1749888004156,0.75055625,105150.0,105140.0,1.08398654]
[1749888004355,0.75055625,105150.0,105140.0,1.09735222]
[1749888004547,0.75055625,105150.0,105140.0,1.09735232]
[1749888004752,0.75055625,105150.0,105140.0,1.08679344]
[1749888004944,0.75055625,105150.0,105140.0,1.0973523]
[1749888005148,0.75055625,105150.0,105140.0,1.07342803]
[1749888005344,0.75055625,105150.0,105140.0,0.27549472]
[1749888005545,0.75055625,105150.0,105140.0,0.26504847]
[1749888005750,0.75055625,105150.0,105140.0,0.27562415]
[1749888005949,0.75055625,105150.0,105140.0,0.26215989]
[1749888006245,0.75055625,105150.0,105140.0,0.27567362]
[1749888006450,0.86941978,105150.0,105140.0,0.23097447]
[1749888006661,0.75055625,105150.0,105140.0,0.27565612]
[1749888006960,0.75055625,105150.0,105140.0,0.25157029]
[1749888007162,0.75055625,105150.0,105140.0,0.24727591]
[1749888007456,0.75055625,105150.0,105140.0,0.26079027]
[1749888007654,0.75055625,105150.0,105140.0,0.27565629]
[1749888007855,0.75055625,105150.0,105140.0,0.27562535]
[1749888008152,0.75055625,105150.0,105140.0,0.25157004]
[1749888008657,0.75055625,105150.0,105140.0,0.27562506]
[1749888009158,0.75055625,105150.0,105140.0,0.26076176]
[1749888009359,0.75055625,105150.0,105140.0,0.05954432]
[1749888009559,0.75055625,105150.0,105140.0,0.27562765]
[1749888009761,0.75055625,105150.0,105140.0,0.25018938]
[1749888010064,0.75055625,105150.0,105140.0,0.27562771]
[1749888010261,0.75055625,105150.0,105140.0,0.26076202]
[1749888010458,0.65055625,105150.0,105140.0,0.26077397]
[1749888010755,0.65055625,105150.0,105140.0,0.25157004]
[1749888010956,0.65055625,105150.0,105140.0,0.26077676]
[1749888011150,0.76941978,105150.0,105140.0,0.21747456]
[1749888011349,0.76941978,105150.0,105140.0,0.23096162]
[1749888011555,0.76941978,105150.0,105140.0,0.22038423]
[1749888012260,0.76941978,105150.0,105140.0,0.2203852]
[1749888012660,0.76941978,105150.0,105140.0,0.22038523]
[1749888012860,0.76941978,105150.0,105140.0,0.20551951]
[1749888013051,0.76941978,105150.0,105140.0,0.2203852]
[1749888013457,0.76941978,105150.0,105140.0,0.22038524]
[1749888013657,0.76941978,105150.0,105140.0,0.2203852]
[1749888013961,0.76941978,105150.0,105140.0,0.22038562]
[1749888014165,0.76941978,105150.0,105140.0,0.22038565]
[1749888014363,0.76941978,105150.0,105140.0,0.20552042]
[1749888014563,0.76941978,105150.0,105140.0,0.22038614]
[1749888014960,0.76941978,105150.0,105140.0,0.20688873]
[1749888015160,0.76941978,105150.0,105140.0,0.20552076]
[1749888015360,0.86941978,105150.0,105140.0,0.19202301]
[1749888015553,0.86941978,105150.0,105140.0,0.20688873]
[1749888015759,0.86941978,105150.0,105140.0,0.20552153]
[1749888015959,0.86941978,105150.0,105140.0,0.20552157]
[1749888016161,0.86941978,105150.0,105140.0,0.22035637]
[1749888016354,0.86941978,105150.0,105140.0,0.20549485]
[1749888016559,0.86528143,105150.0,105140.0,0.22036037]
[1749888016761,0.86528143,105150.0,105140.0,0.22036035]
[1749888017161,0.86528143,105150.0,105140.0,0.22035594]
[1749888017362,0.86528143,105150.0,105140.0,0.20549046]
[1749888017668,0.86528143,105150.0,105140.0,0.20688847]
[1749888017863,0.86528143,105150.0,105140.0,0.22035645]
[1749888018260,0.86528143,105150.0,105140.0,0.20549136]
[1749888018456,0.86528143,105150.0,105140.0,0.19202301]
[1749888018862,0.86528143,105150.0,105140.0,0.20688847]
[1749888019061,0.86528143,105150.0,105140.0,0.2054918]
[1749888019359,0.86528143,105150.0,105140.0,0.20688847]
[1749888019559,0.86528143,105150.0,105140.0,0.20549223]
[1749888019860,0.86528143,105150.0,105140.0,0.22035767]
[1749888020059,0.86528143,105150.0,105140.0,0.20688845]
[1749888020261,0.86528143,105150.0,105140.0,0.22035626]
[1749888020565,0.86528143,105150.0,105140.0,0.19202301]
[1749888020765,0.86528143,105150.0,105140.0,0.20688845]
[1749888020972,0.86528143,105150.0,105140.0,0.25295611]
[1749888021170,0.86528143,105150.0,105140.0,0.23809066]
[1749888021370,0.86528143,105150.0,105140.0,0.25295611]
[1749888021563,0.86528143,105150.0,105140.0,0.23948845]
[1749888021765,0.86528143,105150.0,105140.0,0.25295611]
[1749888022367,0.7464179,105150.0,105140.0,0.2635111]
[1749888022568,0.6529179,105150.0,105140.0,0.453647]
[1749888022769,0.6529179,105150.0,105140.0,0.53562561]
[1749888023070,0.6529179,105150.0,105140.0,0.54907759]
[1749888023271,0.6529179,105150.0,105140.0,0.56393905]
[1749888023571,0.6529179,105150.0,105140.0,0.52507063]
[1749888023771,0.6529179,105150.0,105140.0,0.563941]
[1749888024067,0.6529179,105150.0,105140.0,0.54907568]
[1749888024273,0.6529179,105150.0,105140.0,0.56394098]
[1749888024573,0.6529179,105150.0,105140.0,0.56394011]
[1749888024873,0.6529179,105150.0,105140.0,0.54907461]
[1749888025171,0.6529179,105150.0,105140.0,0.56393956]
[1749888025373,0.6529179,105150.0,105140.0,0.56393955]
[1749888025576,0.6529179,105150.0,105140.0,0.55338523]
[1749888025765,0.6529179,105150.0,105140.0,0.55049021]
[1749888025966,0.6529179,105150.0,105140.0,0.55334703]
[1749888026166,0.6529179,105150.0,105140.0,0.55048965]
[1749888026368,0.6529179,105150.0,105140.0,0.54896373]
[1749888026666,0.6529179,105150.0,105140.0,0.59326671]
[1749888026867,0.6529179,105150.0,105140.0,0.59756759]
[1749888027067,0.6529179,105150.0,105140.0,0.58268953]
[1749888027464,0.6529179,105150.0,105140.0,0.59492445]
[1749888027665,0.2921179,105150.0,105140.0,0.58272102]
[1749888027875,0.2921179,105150.0,105140.0,2.17323363]
[1749888028070,0.2921179,105150.0,105140.0,2.18548336]
[1749888028270,0.2921179,105150.0,105140.0,2.18805742]
[1749888028470,0.2921179,105150.0,105140.0,2.19860877]
[1749888028670,0.2921179,105150.0,105140.0,2.18805742]
[1749888028873,0.2921179,105150.0,105140.0,2.18805747]
[1749888029080,0.2921179,105150.0,105140.0,2.1986089]
[1749888029371,0.2921179,105150.0,105140.0,2.16006938]
[1749888029577,0.1921179,105150.0,105140.0,2.1731949]
[1749888029878,0.1921179,105150.0,105140.0,2.19859346]
[1749888030082,0.1921179,105150.0,105140.0,2.19859345]
[1749888030376,0.1921179,105150.0,105140.0,2.18805754]
[1749888030580,0.1921179,105150.0,105140.0,2.18548676]
[1749888030781,0.1921179,105150.0,105140.0,2.17493203]
[1749888031080,0.1921179,105150.0,105140.0,2.18548676]
[1749888031380,0.1921179,105150.0,105140.0,2.17062411]
[1749888031581,0.1921179,105150.0,105140.0,2.16006938]
[1749888031779,0.1921179,105150.0,105140.0,2.17493203]
[1749888031969,0.1921179,105150.0,105140.0,2.1854602]
[1749888032376,0.002,105150.0,105140.0,2.17493203]
[1749888032579,0.002,105150.0,105140.0,2.17491905]
[1749888032885,0.002,105150.0,105140.0,1.34359925]
[1749888033083,0.002,105150.0,105140.0,2.27851338]
[1749888033281,0.002,105150.0,105140.0,2.2952103]
[1749888033677,0.002,105150.0,105140.0,2.29520321]
[1749888033874,0.002,105150.0,105140.0,2.72055568]
[1749888034081,0.28530425,105160.0,105150.0,0.1901179]
[1749888034278,0.28492792,105160.0,105150.0,0.38865464]
[1749888034483,0.64572792,105160.0,105150.0,0.38431084]
[1749888034677,0.64572792,105160.0,105150.0,0.39917232]
[1749888035077,0.64572792,105160.0,105150.0,0.39917241]
[1749888035278,0.64572792,105160.0,105150.0,0.38427644]
[1749888035475,0.64572792,105160.0,105150.0,0.39913759]
[1749888035686,0.64572792,105160.0,105150.0,0.38427631]
[1749888035885,0.64772792,105160.0,105150.0,0.39913749]
[1749888036083,0.64772792,105160.0,105150.0,0.3991374]
[1749888036386,0.64772792,105160.0,105150.0,0.39913729]
[1749888036584,0.64772792,105160.0,105150.0,0.38865457]
[1749888036789,0.64772792,105160.0,105150.0,0.3991369]
[1749888036984,0.64772792,105160.0,105150.0,0.38865457]
[1749888037184,0.64772792,105160.0,105150.0,0.39913693]
[1749888037385,0.64772792,105160.0,105150.0,0.38427596]
[1749888037586,0.64772792,105160.0,105150.0,0.39913689]
[1749888037795,0.64772792,105160.0,105150.0,0.38865455]
[1749888038090,0.64772792,105160.0,105150.0,0.38427597]
[1749888038491,0.64772792,105160.0,105150.0,0.39905375]
[1749888038792,0.64772792,105160.0,105150.0,0.37379363]
[1749888039093,0.60020212,105160.0,105150.0,0.39905516]
[1749888039393,0.60020212,105160.0,105150.0,0.3990551]
[1749888039588,0.60020212,105160.0,105150.0,0.37379363]
[1749888039783,0.60020212,105160.0,105150.0,0.39905512]
[1749888039993,0.67794286,105160.0,105150.0,0.38427506]
[1749888040194,0.67794286,105160.0,105150.0,0.38857233]
[1749888040392,0.67794286,105160.0,105150.0,0.38427485]
[1749888040595,0.67794286,105160.0,105150.0,0.38427487]
[1749888040793,0.67794286,105160.0,105150.0,0.39905333]
[1749888040991,0.67794286,105160.0,105150.0,0.3990533]
[1749888041295,0.67794286,105160.0,105150.0,0.38427486]
[1749888041496,0.67794286,105160.0,105150.0,0.39904088]
[1749888041792,0.67794286,105160.0,105150.0,0.39904089]
[1749888041996,0.67794286,105160.0,105150.0,0.39904087]
[1749888042991,0.67794286,105160.0,105150.0,0.3885648]
[1749888043198,0.31714286,105160.0,105150.0,0.37379363]
[1749888043389,0.31714286,105160.0,105150.0,0.3885309]
[1749888043689,0.31714286,105160.0,105150.0,0.38424944]
[1749888043897,0.31714286,105160.0,105150.0,0.39898659]
[1749888044188,0.31714286,105160.0,105150.0,0.38424946]
[1749888044395,0.31714286,105160.0,105150.0,0.37379363]
[1749888044595,0.31714286,105160.0,105150.0,0.3989866]
[1749888044995,0.31714286,105160.0,105150.0,0.3885307]
[1749888045291,0.31714286,105160.0,105150.0,0.37379363]
[1749888045697,0.31714286,105160.0,105150.0,0.3885305]
[1749888045894,0.31714286,105160.0,105150.0,0.39898611]
[1749888046299,0.31714286,105160.0,105150.0,0.39898609]
[1749888046496,0.31714286,105160.0,105150.0,0.3885305]
[1749888046698,0.31714286,105160.0,105150.0,0.38424925]
[1749888046901,0.07974074,105160.0,105150.0,0.39898612]
[1749888047194,0.07974074,105160.0,105150.0,0.38853047]
[1749888047400,0.07974074,105160.0,105150.0,0.39898609]
[1749888047598,0.07974074,105160.0,105150.0,0.38424925]
[1749888047789,0.07974074,105160.0,105150.0,0.37379363]
[1749888047989,0.07974074,105160.0,105150.0,0.39898611]
[1749888048195,0.07974074,105160.0,105150.0,0.39898612]
[1749888048395,0.44054074,105160.0,105150.0,0.39898638]
[1749888048594,0.44054074,105160.0,105150.0,0.39898668]
[1749888048801,0.44054074,105160.0,105150.0,0.2951738]
[1749888048997,0.44054074,105160.0,105150.0,0.39875276]
[1749888049190,0.44054074,105160.0,105150.0,0.40920868]
[1749888049395,0.44054074,105160.0,105150.0,0.38401545]
[1749888049596,0.44054074,105160.0,105150.0,0.40924504]
[1749888049792,0.44054074,105160.0,105150.0,0.39877394]
[1749888049998,0.44054074,105160.0,105150.0,0.40924488]
[1749888050302,0.44467909,105160.0,105150.0,0.40924488]
[1749888050603,0.08387909,105160.0,105150.0,0.40924485]
[1749888050802,0.08387909,105160.0,105150.0,0.40924413]
[1749888051105,0.08387909,105160.0,105150.0,0.40924415]
[1749888051290,0.08387909,105160.0,105150.0,0.3944861]
[1749888051496,0.08387909,105160.0,105150.0,0.40924414]
[1749888051695,0.08387909,105160.0,105150.0,0.40925004]